fUSD/lending_fUSD_20260601
["ID","MTS","AMOUNT","RATE_DAILY","PERIOD"]
[423577017,1780247450000,-562.74370127,0.00028739,3]
[423577002,1780247450000,-748.953909,0.00027397,2]
[423577003,1780247450000,-748.953909,0.00027397,2]
[423577005,1780247450000,-748.953909,0.00027397,2]
[423577001,1780247450000,-17726.13,0.00027397,10]
[423577000,1780247450000,-9393.87654136,0.0002496,2]
[423577004,1780247450000,-748.953909,0.00027397,2]
[423576996,1780247450000,-3639.0,0.00016599,2]
[423576998,1780247450000,-860.35171351,0.00022599,2]
[423576997,1780247450000,-3639.0,0.00019599,2]
[423576999,1780247450000,-2778.64828649,0.00022599,2]
[423576995,1780247450000,-3639.0,0.00013599,2]
[423576994,1780247450000,-662.37194539,0.0002496,2]
[423576993,1780247450000,-344.0,0.0002496,2]
[423576991,1780247450000,-521.92269013,0.00016745,2]
[423576989,1780247450000,-31.14195927,0.00016385,2]
[423576986,1780247450000,-1042.57780387,0.00014585,2]
[423576988,1780247450000,-125.91804073,0.00016385,2]
[423576990,1780247450000,-703.07730987,0.00016745,2]
[423576987,1780247450000,-190.30219827,0.00014585,2]
[423576985,1780247450000,-510.13958758,0.00014585,2]
[423576984,1780247450000,-10679.81651685,0.00014585,2]
[423576982,1780247450000,-3121.60053612,0.00014585,2]
[423576980,1780247450000,-2489.9678,0.00014585,2]
[423576981,1780247450000,-922.67325745,0.00014585,2]
[423576983,1780247450000,-943.53344287,0.00014585,2]
[423576992,1780247450000,-9833.29480512,0.0002496,2]
[423577006,1780247450000,-748.953909,0.00027397,2]
[423577024,1780247450000,-3351.49,0.00028797,7]
[423577009,1780247450000,-748.953909,0.00027397,2]
[423577039,1780247450000,-336.11,0.00028883,30]
[423577008,1780247450000,-748.953909,0.00027397,2]
[423577032,1780247450000,-1590.0,0.0002885,3]
[423577034,1780247450000,-2319.0,0.0002885,3]
[423577035,1780247450000,-2319.0,0.0002885,3]
[423577036,1780247450000,-163.0,0.0002885,3]
[423577031,1780247450000,-2334.0,0.0002885,3]
[423577037,1780247450000,-336.11,0.00028852,7]
[423577038,1780247450000,-336.56,0.00028852,7]
[423577029,1780247450000,-336.56,0.0002882,2]
[423577030,1780247450000,-150.0,0.00028834,2]
[423577021,1780247450000,-336.56,0.00028788,30]
[423577022,1780247450000,-1386.41,0.00028797,7]
[423577027,1780247450000,-8898.31,0.00028807,7]
[423577033,1780247450000,-1590.0,0.0002885,3]
[423577023,1780247450000,-2037.67,0.00028797,7]
[423577025,1780247450000,-2037.66,0.00028797,7]
[423577012,1780247450000,-748.953909,0.00027397,2]
[423577010,1780247450000,-748.953909,0.00027397,2]
[423577014,1780247450000,-748.953909,0.00027397,2]
[423577015,1780247450000,-748.953909,0.00027397,2]
[423577011,1780247450000,-748.953909,0.00027397,2]
[423577016,1780247450000,-748.95391,0.00027397,2]
[423577019,1780247450000,-336.56,0.00028756,7]
[423577020,1780247450000,-336.11,0.00028788,30]
[423577018,1780247450000,-336.11,0.00028756,7]
[423577028,1780247450000,-336.11,0.0002882,2]
[423577026,1780247450000,-3346.41,0.00028797,7]
[423577013,1780247450000,-748.953909,0.00027397,2]
[423577055,1780247451000,-336.11,0.00028979,30]
[423577064,1780247451000,-6951.6435235,0.00029,2]
[423577054,1780247451000,-188.64740033,0.00028971,2]
[423577056,1780247451000,-336.56,0.00028979,30]
[423577062,1780247451000,-163.51,0.00029,30]
[423577063,1780247451000,-395.0,0.00029,2]
[423577059,1780247451000,-1333.07,0.00029,7]
[423577061,1780247451000,-6355.78,0.00029,2]
[423577058,1780247451000,-1716.0,0.00029,2]
[423577065,1780247451000,-1215.0,0.00029,2]
[423577057,1780247451000,-3000.0,0.00028999,2]
[423577047,1780247451000,-336.11,0.00028947,7]
[423577052,1780247451000,-2037.66,0.00028964,2]
[423577048,1780247451000,-336.56,0.00028947,7]
[423577044,1780247451000,-336.11,0.00028915,2]
[423577053,1780247451000,-3346.41,0.00028964,2]
[423577042,1780247451000,-46608.58,0.000289,2]
[423577046,1780247451000,-200.0,0.00028941,2]
[423577050,1780247451000,-2037.67,0.00028964,2]
[423577051,1780247451000,-3351.49,0.00028964,2]
[423577049,1780247451000,-1386.41,0.00028964,2]
[423577043,1780247451000,-20839.59444734,0.00028913,2]
[423577041,1780247451000,-8576.33,0.000289,2]
[423577040,1780247451000,-336.56,0.00028883,30]
[423577060,1780247451000,-164.7,0.00029,2]
[423577045,1780247451000,-336.56,0.00028915,2]
[423577066,1780247451000,-10000.0,0.00029,2]
[423577093,1780247451000,-4242.746,0.000291,2]
[423577069,1780247451000,-10000.0,0.00029,2]
[423577094,1780247451000,-2193.01397564,0.000291,2]
[423577091,1780247451000,-10153.30659547,0.000291,2]
[423577090,1780247451000,-13809.99312604,0.000291,2]
[423577085,1780247451000,-336.56,0.00029074,30]
[423577088,1780247451000,-32798.58687396,0.000291,2]
[423577084,1780247451000,-336.11,0.00029074,30]
[423577083,1780247451000,-1000.0,0.00029049,7]
[423577086,1780247451000,-8576.33,0.000291,2]
[423577082,1780247451000,-336.56,0.00029042,7]
[423577087,1780247451000,-8576.33,0.000291,2]
[423577081,1780247451000,-336.11,0.00029042,7]
[423577079,1780247451000,-336.11,0.0002901,2]
[423577092,1780247451000,-775.07192143,0.000291,2]
[423577080,1780247451000,-336.56,0.0002901,2]
[423577089,1780247451000,-1042.0,0.00020503,7]
[423577070,1780247451000,-9456.75425194,0.00029,2]
[423577073,1780247451000,-10000.0,0.00029,2]
[423577071,1780247451000,-10000.0,0.00029,2]
[423577072,1780247451000,-3366.45642942,0.00029,2]
[423577068,1780247451000,-10000.0,0.00029,2]
[423577074,1780247451000,-1160.68464413,0.00029,2]
[423577067,1780247451000,-10000.0,0.00029,2]
[423577076,1780247451000,-1225.04,0.00029,30]
[423577078,1780247451000,-526.65237753,0.00029,2]
[423577075,1780247451000,-1229.78214246,0.00029,30]
[423577077,1780247451000,-561.07607157,0.00029,2]
[423577095,1780247469000,-933.69403119,0.00013698,2]
[423577102,1780247597000,-96.3382509,0.00012014,2]
[423577101,1780247597000,-500.0,0.00012014,2]
[423577104,1780247598000,-466.25666657,0.00012014,2]
[423577103,1780247598000,-130.08158433,0.00012014,2]
[423577105,1780247598000,-33.74333343,0.00012014,2]
[423577108,1780247598000,-183.74585819,0.00012014,2]
[423577106,1780247598000,-174.11508153,0.00012014,2]
[423577107,1780247598000,-204.73397775,0.00012014,2]
[423577109,1780247599000,-316.25414181,0.00012014,2]
[423577110,1780247599000,-280.08410909,0.00012014,2]
[423577111,1780247599000,1000.0,0.00025601,120]
[423577112,1780247600000,-500.0,0.00011336,2]
[423577113,1780247600000,-96.3382509,0.00011336,2]
[423577114,1780247601000,-403.6617491,0.00011336,2]
[423577115,1780247601000,-192.6765018,0.00011499,2]
[423577119,1780247603000,-4837.21785754,0.00011237,2]
[423577117,1780247603000,-596.3382509,0.00011237,2]
[423577116,1780247603000,-596.3382509,0.00011237,2]
[423577118,1780247603000,-1229.78214246,0.00011237,2]
[423577121,1780247665000,182.93054215,0.00025676,120]
[423577120,1780247665000,234.39565274,0.00025676,120]
[423577122,1780247768000,500.0,0.0003013,120]
[423577124,1780247798000,500.0,0.00028893,120]
[423577123,1780247798000,500.0,0.00028893,120]
[423577126,1780247799000,500.0,0.00029099,120]
[423577125,1780247799000,500.0,0.00028893,120]
[423577128,1780247800000,500.0,0.00029641,120]
[423577127,1780247800000,500.0,0.00029515,120]
[423577130,1780247801000,500.0,0.00029999,120]
[423577129,1780247801000,500.0,0.00029999,120]
[423577134,1780247802000,500.0,0.00030129,120]
[423577133,1780247802000,500.0,0.00030129,120]
[423577132,1780247802000,500.0,0.00030129,120]
[423577131,1780247802000,500.0,0.00029999,120]
[423577136,1780247811000,500.0,0.00028893,120]
[423577135,1780247811000,500.0,0.00028893,120]
[423577137,1780247812000,500.0,0.00028893,120]
[423577139,1780247812000,500.0,0.00029515,120]
[423577138,1780247812000,500.0,0.00029099,120]
[423577142,1780247813000,500.0,0.00029999,120]
[423577141,1780247813000,500.0,0.00029999,120]
[423577140,1780247813000,500.0,0.00029641,120]
[423577146,1780248073000,500.0,0.00028686,120]
[423577145,1780248073000,500.0,0.00028686,120]
[423577144,1780248073000,500.0,0.00028686,120]
[423577143,1780248073000,500.0,0.00028686,120]
[423577149,1780248074000,500.0,0.00028686,120]
[423577148,1780248074000,500.0,0.00028686,120]
[423577147,1780248074000,500.0,0.00028686,120]
[423577150,1780248075000,500.0,0.00028686,120]
[423577151,1780248075000,560.8,0.00028686,120]
[423577156,1780248138000,500.0,0.0003013,120]
[423577157,1780248139000,2369.0,0.00030137,120]
[423577158,1780248195000,500.0,0.00028686,120]
[423577159,1780248196000,618.4,0.00028686,120]
[423577161,1780248354000,3000.0,0.00030137,120]
[423577162,1780248410000,500.0,0.00028893,120]
[423577164,1780248411000,508.41629767,0.00028893,120]
[423577163,1780248411000,500.0,0.00028893,120]
[423577166,1780248493000,500.0,0.0003013,120]
[423577167,1780248540000,1000.0,0.00030136,120]
[423577168,1780248549000,-1200.0,0.00010436,2]
[423577170,1780248549000,-250.0,0.00010437,2]
[423577171,1780248549000,-4158.20356366,0.00010437,2]
[423577173,1780248549000,-209.17060647,0.00010535,2]
[423577172,1780248549000,-3142.20415459,0.00010437,2]
[423577174,1780248549000,-150.0,0.00010539,2]
[423577175,1780248549000,-590.42167528,0.00010648,2]
[423577169,1780248549000,-300.0,0.00010436,2]
[423577180,1780248552000,-250.0,0.00011036,2]
[423577177,1780248552000,-250.93527978,0.00011036,2]
[423577178,1780248552000,-185.84456012,0.00011036,2]
[423577176,1780248552000,-639.36046718,0.00010648,2]
[423577179,1780248552000,-236.48639259,0.00011036,2]
[423577181,1780248552000,-309.21205635,0.00011036,2]
[423577188,1780248552000,-10000.0,0.00011037,2]
[423577182,1780248552000,-500.0,0.00011036,2]
[423577184,1780248552000,-500.0,0.00011036,2]
[423577185,1780248552000,-274.92455645,0.00011036,2]
[423577187,1780248552000,-486.29368753,0.00011037,2]
[423577186,1780248552000,-5866.943,0.00011037,2]
[423577183,1780248552000,-500.0,0.00011036,2]
[423577189,1780248553000,-10000.0,0.00011037,2]
[423577192,1780248554000,-10000.0,0.00011037,2]
[423577191,1780248554000,-10000.0,0.00011037,2]
[423577190,1780248554000,-10000.0,0.00011037,2]
[423577194,1780248555000,-10000.0,0.00011037,2]
[423577193,1780248555000,-10000.0,0.00011037,2]
[423577195,1780248556000,-10000.0,0.00011037,2]
[423577196,1780248556000,-10000.0,0.00011037,2]
[423577207,1780248557000,-200.0,0.00012339,2]
[423577205,1780248557000,-215.61611719,0.00011483,2]
[423577206,1780248557000,-1807.3234982,0.00011499,2]
[423577204,1780248557000,-166.06505902,0.00011481,2]
[423577203,1780248557000,-25.76801253,0.00011481,2]
[423577202,1780248557000,-256.74987204,0.00011481,2]
[423577201,1780248557000,-297.20020296,0.00011481,2]
[423577200,1780248557000,-250.0,0.0001148,2]
[423577199,1780248557000,-237.0,0.00011475,2]
[423577197,1780248557000,-8783.28191247,0.00011037,2]
[423577198,1780248557000,-150.0,0.00011136,2]
[423577209,1780248558000,-3773.14867323,0.00012426,2]
[423577208,1780248558000,-607.06823239,0.00012382,2]
[423577212,1780248558000,-10000.0,0.00012469,2]
[423577211,1780248558000,-10000.0,0.00012469,2]
[423577210,1780248558000,-3230.77841997,0.00012469,2]
[423577220,1780248559000,-2721.13447043,0.00013182,2]
[423577219,1780248559000,-154.94,0.00013144,2]
[423577218,1780248559000,-4058.89394954,0.00013082,2]
[423577216,1780248559000,-565.03158003,0.00012941,2]
[423577217,1780248559000,-2500.0,0.00013082,2]
[423577215,1780248559000,-2704.47841997,0.00012941,2]
[423577214,1780248559000,-7295.52158003,0.00012469,2]
[423577213,1780248559000,-10000.0,0.00012469,2]
[423577222,1780248560000,-10000.0,0.00013182,2]
[423577221,1780248560000,-10000.0,0.00013182,2]
[423577223,1780248561000,-10000.0,0.00013182,2]
[423577224,1780248561000,-10000.0,0.00013182,2]
[423577225,1780248561000,-10000.0,0.00013182,2]
[423577226,1780248562000,-10000.0,0.00013182,2]
[423577227,1780248567000,-10000.0,0.00013182,2]
[423577228,1780248568000,-10000.0,0.00013182,2]
[423577230,1780248569000,-10000.0,0.00013182,2]
[423577229,1780248569000,-10000.0,0.00013182,2]
[423577231,1780248571000,-10000.0,0.00013182,2]
[423577232,1780248581000,-7834.0,0.00013182,2]
[423577235,1780248612000,500.0,0.00028893,120]
[423577240,1780248631000,-292.16608246,0.0001148,2]
[423577244,1780248631000,-500.84979999,0.00013182,2]
[423577238,1780248631000,-371.17983156,0.0001148,2]
[423577245,1780248631000,-632.00874465,0.00013182,2]
[423577239,1780248631000,-304.17216844,0.0001148,2]
[423577242,1780248631000,-160.0,0.00013181,2]
[423577248,1780248631000,-2135.86568164,0.00013182,2]
[423577246,1780248631000,-448.69411331,0.00013182,2]
[423577243,1780248631000,-167.66502369,0.00013182,2]
[423577247,1780248631000,-250.78231836,0.00013182,2]
[423577241,1780248631000,-263.39072739,0.0001148,2]
[423577294,1780248632000,-300.0,0.00014499,2]
[423577293,1780248632000,-300.0,0.00014499,2]
[423577292,1780248632000,-300.0,0.00014499,2]
[423577287,1780248632000,-818.49,0.00014391,2]
[423577286,1780248632000,-166.66,0.00014388,2]
[423577290,1780248632000,-604.9384145,0.00014499,2]
[423577280,1780248632000,-166.66,0.0001411,2]
[423577295,1780248632000,-327.68260529,0.00014499,2]
[423577283,1780248632000,-166.66,0.00014247,2]
[423577291,1780248632000,-300.0,0.00014499,2]
[423577288,1780248632000,-169.46,0.00014397,2]
[423577296,1780248632000,-200.0,0.00014499,2]
[423577300,1780248632000,-224.89854366,0.00014499,2]
[423577304,1780248632000,-500.0,0.00014556,2]
[423577282,1780248632000,-445.2,0.00014243,2]
[423577299,1780248632000,-200.0,0.00014499,2]
[423577303,1780248632000,-245.7860907,0.00014556,2]
[423577297,1780248632000,-200.0,0.00014499,2]
[423577302,1780248632000,-150.0,0.00014556,2]
[423577301,1780248632000,-150.0,0.00014556,2]
[423577306,1780248632000,-500.0,0.00014556,2]
[423577305,1780248632000,-500.0,0.00014556,2]
[423577307,1780248632000,-500.0,0.00014556,2]
[423577309,1780248632000,-500.0,0.00014556,2]
[423577310,1780248632000,-500.0,0.00014556,2]
[423577308,1780248632000,-500.0,0.00014556,2]
[423577298,1780248632000,-200.0,0.00014499,2]
[423577284,1780248632000,-166.66,0.00014384,2]
[423577276,1780248632000,-14090.15774791,0.0001399,2]
[423577289,1780248632000,-600.0,0.00014499,2]
[423577250,1780248632000,-500.0,0.00013182,2]
[423577249,1780248632000,-1426.18431836,0.00013182,2]
[423577251,1780248632000,-2000.0,0.00013182,2]
[423577254,1780248632000,-500.0,0.00013698,2]
[423577253,1780248632000,-517.9,0.00013698,2]
[423577255,1780248632000,-500.0,0.00013698,2]
[423577256,1780248632000,-500.0,0.00013698,2]
[423577252,1780248632000,-500.0,0.00013562,2]
[423577260,1780248632000,-173.47,0.00013698,2]
[423577258,1780248632000,-500.0,0.00013698,2]
[423577257,1780248632000,-365.01560358,0.00013698,2]
[423577259,1780248632000,-500.0,0.00013698,2]
[423577278,1780248632000,-218.81212824,0.00014035,2]
[423577261,1780248632000,-500.0,0.00013698,2]
[423577264,1780248632000,-500.0,0.00013698,2]
[423577266,1780248632000,-500.0,0.00013698,2]
[423577267,1780248632000,-500.0,0.00013698,2]
[423577271,1780248632000,-200.0,0.00013699,2]
[423577269,1780248632000,-500.0,0.00013698,2]
[423577272,1780248632000,-166.66,0.00013699,2]
[423577275,1780248632000,-166.66,0.00013973,2]
[423577265,1780248632000,-500.0,0.00013698,2]
[423577273,1780248632000,-7588.02,0.0001377,2]
[423577268,1780248632000,-500.0,0.00013698,2]
[423577274,1780248632000,-166.66,0.00013836,2]
[423577277,1780248632000,-250.0,0.00014,2]
[423577263,1780248632000,-500.0,0.00013698,2]
[423577315,1780248632000,-500.0,0.00014556,2]
[423577311,1780248632000,-150.0,0.00014556,2]
[423577313,1780248632000,-500.0,0.00014556,2]
[423577345,1780248632000,-432.0,0.000149,2]
[423577347,1780248632000,-5000.0,0.000149,2]
[423577346,1780248632000,-692.53807337,0.000149,2]
[423577349,1780248632000,-618.92677171,0.000149,2]
[423577348,1780248632000,-886.06668494,0.000149,2]
[423577350,1780248632000,-389.0,0.00014902,2]
[423577351,1780248632000,-389.0,0.00014914,2]
[423577353,1780248632000,-389.0,0.00014939,2]
[423577354,1780248632000,-4995.0,0.0001495,2]
[423577352,1780248632000,-386.0,0.00014927,2]
[423577355,1780248632000,-4995.0,0.0001495,2]
[423577356,1780248632000,-4995.0,0.0001495,2]
[423577344,1780248632000,-10679.24065909,0.000149,2]
[423577358,1780248632000,-432.0,0.00014954,2]
[423577365,1780248632000,-432.0,0.00014988,2]
[423577360,1780248632000,-389.0,0.00014969,2]
[423577363,1780248632000,-389.0,0.00014981,2]
[423577367,1780248632000,-432.0,0.00014999,2]
[423577364,1780248632000,-386.0,0.00014986,2]
[423577366,1780248632000,-631.57484016,0.0001499,2]
[423577362,1780248632000,-389.0,0.00014981,2]
[423577361,1780248632000,-386.0,0.0001498,2]
[423577359,1780248632000,-446.0,0.00014965,2]
[423577368,1780248632000,-666.0,0.00014999,2]
[423577369,1780248632000,-300.0,0.00014999,2]
[423577370,1780248632000,-308.12090886,0.00014999,2]
[423577357,1780248632000,-4995.0,0.0001495,2]
[423577371,1780248632000,-14702.90420585,0.00015,2]
[423577343,1780248632000,-386.0,0.0001488,2]
[423577338,1780248632000,-386.0,0.00014844,2]
[423577316,1780248632000,-297.24403707,0.00014556,2]
[423577317,1780248632000,-150.0,0.00014556,2]
[423577312,1780248632000,-500.0,0.00014556,2]
[423577318,1780248632000,-633.12700021,0.00014556,2]
[423577319,1780248632000,-150.0,0.00014556,2]
[423577327,1780248632000,-340.0,0.00014759,2]
[423577322,1780248632000,-1852.42,0.00014646,2]
[423577328,1780248632000,-389.0,0.00014765,2]
[423577320,1780248632000,-200.05484717,0.00014556,2]
[423577321,1780248632000,-318.12,0.00014637,2]
[423577329,1780248632000,-528.0,0.00014768,2]
[423577325,1780248632000,-389.0,0.00014748,2]
[423577341,1780248632000,-386.0,0.00014869,2]
[423577323,1780248632000,-4277.13,0.00014662,2]
[423577326,1780248632000,-389.0,0.00014758,2]
[423577331,1780248632000,-245.74043337,0.00014789,2]
[423577330,1780248632000,-389.0,0.00014789,2]
[423577333,1780248632000,-389.0,0.00014818,2]
[423577334,1780248632000,-386.0,0.00014818,2]
[423577337,1780248632000,-301.44876433,0.00014842,2]
[423577335,1780248632000,-2000.0,0.00014829,2]
[423577336,1780248632000,-389.0,0.00014831,2]
[423577332,1780248632000,-432.0,0.00014806,2]
[423577342,1780248632000,-389.0,0.00014879,2]
[423577339,1780248632000,-211.53307865,0.00014845,2]
[423577340,1780248632000,-389.0,0.00014862,2]
[423577324,1780248632000,-3663.10193994,0.00014745,2]
[423577314,1780248632000,-150.0,0.00014556,2]
[423577413,1780248637000,-371.80999094,0.0001148,2]
[423577415,1780248637000,-8074.38825589,0.0001148,2]
[423577414,1780248637000,-2218.74457317,0.0001148,2]
[423577472,1780248638000,-792.0304211,0.00017994,2]
[423577443,1780248638000,-201.10590632,0.000161,7]
[423577447,1780248638000,-450.31,0.00016438,2]
[423577449,1780248638000,-386.0,0.00016554,2]
[423577451,1780248638000,-166.66,0.00016763,2]
[423577452,1780248638000,-157.06,0.00016934,2]
[423577453,1780248638000,-792.0304211,0.0001762,2]
[423577450,1780248638000,-168.2,0.00016712,2]
[423577455,1780248638000,-792.0304211,0.00017641,2]
[423577448,1780248638000,-2000.0,0.00016477,2]
[423577454,1780248638000,-792.0304211,0.00017639,2]
[423577456,1780248638000,-792.0304211,0.00017646,2]
[423577457,1780248638000,-792.0304211,0.0001769,2]
[423577474,1780248638000,-839.5679056,0.00018,2]
[423577458,1780248638000,-792.0304211,0.00017709,2]
[423577460,1780248638000,-792.0304211,0.00017783,2]
[423577470,1780248638000,-1253.08,0.000179,2]
[423577468,1780248638000,-1090.00342372,0.0001789,2]
[423577469,1780248638000,-157.06,0.00017893,2]
[423577471,1780248638000,-792.0304211,0.00017914,2]
[423577461,1780248638000,-445.2,0.00017803,2]
[423577465,1780248638000,-792.0304211,0.00017834,2]
[423577462,1780248638000,-792.0304211,0.00017806,2]
[423577463,1780248638000,-3663.10193986,0.00017822,2]
[423577464,1780248638000,-792.0304211,0.00017831,2]
[423577467,1780248638000,-792.0304211,0.00017887,2]
[423577466,1780248638000,-792.0304211,0.00017853,2]
[423577446,1780248638000,-842.8,0.00016438,2]
[423577459,1780248638000,-792.0304211,0.00017759,2]
[423577442,1780248638000,-445.2,0.00016023,2]
[423577445,1780248638000,-200.0,0.0001634,2]
[423577420,1780248638000,-158.49388466,0.00014999,2]
[423577417,1780248638000,-6744.51443063,0.000149,2]
[423577421,1780248638000,-500.0,0.00014999,2]
[423577416,1780248638000,-2613.56481705,0.0001148,2]
[423577419,1780248638000,-4995.0,0.0001495,2]
[423577418,1780248638000,-3932.11116758,0.000149,2]
[423577422,1780248638000,-500.0,0.00014999,2]
[423577424,1780248638000,-646.97528893,0.00014999,2]
[423577434,1780248638000,-525.0,0.00015139,2]
[423577423,1780248638000,-451.32465996,0.00014999,2]
[423577425,1780248638000,-500.0,0.00014999,2]
[423577426,1780248638000,-500.0,0.00014999,2]
[423577430,1780248638000,-250.0,0.00015,2]
[423577473,1780248638000,-8076.97962194,0.00018,2]
[423577432,1780248638000,-450.31,0.00015068,2]
[423577429,1780248638000,-155.0,0.00015,3]
[423577431,1780248638000,-600.0,0.00015,2]
[423577427,1780248638000,-3199202.86097719,0.00015,2]
[423577433,1780248638000,-1273.0,0.00015139,2]
[423577428,1780248638000,-1253.08,0.00015,2]
[423577435,1780248638000,-1226.0,0.00015139,2]
[423577437,1780248638000,-6067.0,0.00015139,2]
[423577436,1780248638000,-3639.0,0.00015139,2]
[423577438,1780248638000,-2000.0,0.00015179,2]
[423577439,1780248638000,-500.0,0.00015179,2]
[423577440,1780248638000,-2273.37776545,0.00015807,2]
[423577441,1780248638000,-300.0,0.00016,2]
[423577444,1780248638000,-3663.10193986,0.00016284,2]
[423577482,1780248638000,-792.0304211,0.00018097,2]
[423577574,1780248638000,-151.0,0.00019719,2]
[423577475,1780248638000,-198.81886685,0.00018,2]
[423577547,1780248638000,-150.0,0.00019178,2]
[423577549,1780248638000,-150.0,0.00019178,2]
[423577557,1780248638000,-1590.0,0.00019295,2]
[423577553,1780248638000,-213.1945436,0.00019178,2]
[423577563,1780248638000,-304.0,0.00019452,2]
[423577561,1780248638000,-3663.10193986,0.00019361,2]
[423577559,1780248638000,-163.0,0.00019295,2]
[423577555,1780248638000,-1590.0,0.00019295,2]
[423577551,1780248638000,-150.0,0.00019178,2]
[423577567,1780248638000,-445.2,0.00019584,2]
[423577565,1780248638000,-409.3563322,0.00019577,2]
[423577569,1780248638000,-1253.08,0.000196,2]
[423577570,1780248638000,-323.67634818,0.000197,2]
[423577572,1780248638000,-150.0,0.000197,2]
[423577578,1780248638000,-151.0,0.00019719,2]
[423577576,1780248638000,-693.39197629,0.00019719,2]
[423577582,1780248638000,-151.0,0.00019719,2]
[423577580,1780248638000,-1428.38747117,0.00019719,2]
[423577589,1780248638000,-151.0,0.00019719,2]
[423577591,1780248638000,-2080.17592889,0.00019719,2]
[423577593,1780248638000,-151.0,0.00019719,2]
[423577587,1780248638000,-151.0,0.00019719,2]
[423577585,1780248638000,-151.0,0.00019719,2]
[423577595,1780248638000,-151.0,0.00019719,2]
[423577597,1780248638000,-151.0,0.00019719,2]
[423577599,1780248638000,-151.0,0.00019719,2]
[423577601,1780248638000,-151.0,0.00019719,2]
[423577545,1780248638000,-1788.89432231,0.00019,2]
[423577543,1780248638000,-163.0,0.00018975,2]
[423577484,1780248638000,-3269.51,0.00018118,2]
[423577524,1780248638000,-839.5679056,0.000185,2]
[423577478,1780248638000,-210.659953,0.00018,2]
[423577476,1780248638000,-350.0,0.00018,2]
[423577480,1780248638000,-792.0304211,0.00018041,2]
[423577486,1780248638000,-2000.0,0.00018125,2]
[423577488,1780248638000,-1273.0,0.00018139,2]
[423577491,1780248638000,-525.0,0.00018139,2]
[423577493,1780248638000,-1226.0,0.00018139,2]
[423577528,1780248638000,-792.0304211,0.00018538,2]
[423577497,1780248638000,-6067.0,0.00018139,2]
[423577505,1780248638000,-792.0304211,0.00018208,2]
[423577509,1780248638000,-792.0304211,0.00018332,2]
[423577507,1780248638000,-792.0304211,0.00018262,2]
[423577512,1780248638000,-792.0304211,0.00018378,2]
[423577499,1780248638000,-792.0304211,0.00018139,2]
[423577495,1780248638000,-3639.0,0.00018139,2]
[423577503,1780248638000,-839.5679056,0.000182,2]
[423577501,1780248638000,-792.0304211,0.00018142,2]
[423577537,1780248638000,-839.5679056,0.000187,2]
[423577539,1780248638000,-1238.0,0.00018728,5]
[423577526,1780248638000,-792.0304211,0.00018504,2]
[423577522,1780248638000,-792.0304211,0.00018467,2]
[423577535,1780248638000,-150.0,0.000186,2]
[423577541,1780248638000,-157.07,0.00018851,2]
[423577530,1780248638000,-792.0304211,0.00018549,2]
[423577520,1780248638000,-792.0304211,0.00018424,2]
[423577518,1780248638000,-842.8,0.0001841,2]
[423577516,1780248638000,-792.0304211,0.00018403,2]
[423577514,1780248638000,-839.5679056,0.000184,2]
[423577532,1780248638000,-161.83817409,0.000186,2]
[423577678,1780248639000,-157.0,0.0002,2]
[423577676,1780248639000,-200.0,0.0002,2]
[423577687,1780248639000,-1199.0,0.0002,2]
[423577689,1780248639000,-862.28603014,0.00020049,2]